[Event "Titled Tuesday Blitz September 28 2021"]
[White "Przybylski, Wojciech"]
[Black "Costachi, Mihnea"]
[WhiteFideId "1117599"]
[BlackFideId "1217518"]
[WhiteElo "2285"]
[BlackElo "2482"]
[Result "0-1"]
[Round "11"]
[TimeControl "180+1"]
[Date "2021.09.28"]
[WhiteClock "0:00:48"]
[BlackClock "0:02:05"]

1. e4 {[%clk 0:03:00]}  e5 {[%clk 0:02:59]} 2. Nf3 {[%clk 0:02:46]}  Nc6 {[%clk 0:02:59]} 3. d4 {[%clk 0:02:46]}  exd4 {[%clk 0:02:59]} 4. Nxd4 {[%clk 0:02:47]}  Nf6 {[%clk 0:03:00]} 5. Nxc6 {[%clk 0:02:45]}  bxc6 {[%clk 0:03:01]} 6. e5 {[%clk 0:02:43]}  Qe7 {[%clk 0:03:01]} 7. Qe2 {[%clk 0:02:43]}  Nd5 {[%clk 0:03:02]} 8. c4 {[%clk 0:02:43]}  Nb6 {[%clk 0:03:02]} 9. Nc3 {[%clk 0:02:38]}  a5 {[%clk 0:03:02]} 10. f4 {[%clk 0:02:36]}  g6 {[%clk 0:03:02]} 11. h4 {[%clk 0:02:33]}  h5 {[%clk 0:03:01]} 12. Rh3 {[%clk 0:02:25]}  Ba6 {[%clk 0:03:00]} 13. Qe4 {[%clk 0:02:24]}  Bg7 {[%clk 0:02:47]} 14. Bd2 {[%clk 0:02:19]}  O-O {[%clk 0:02:46]} 15. O-O-O {[%clk 0:02:18]}  Rab8 {[%clk 0:02:47]} 16. Bd3 {[%clk 0:02:02]}  d6 {[%clk 0:02:30]} 17. Re3 {[%clk 0:01:58]}  dxe5 {[%clk 0:02:29]} 18. fxe5 {[%clk 0:01:58]}  Qe6 {[%clk 0:02:22]} 19. b3 {[%clk 0:01:33]}  a4 {[%clk 0:02:21]} 20. g4 {[%clk 0:01:30]}  axb3 {[%clk 0:02:21]} 21. axb3 {[%clk 0:01:30]}  Nd7 {[%clk 0:02:21]} 22. Nd5 {[%clk 0:00:58]}  Nc5 {[%clk 0:02:13]} 23. Nxc7 {[%clk 0:00:51]}  Qe7 {[%clk 0:02:10]} 24. Qxc6 {[%clk 0:00:49]}  Nxb3+ {[%clk 0:02:06]} 25. Kb2 {[%clk 0:00:48]}  Nd4+ {[%clk 0:02:05]} 0-1


[Site "https://www.chess.com"]

[Event "Titled Tuesday Blitz September 28 2021"]
[White "Quparadze, Giga"]
[Black "Lazavik, Denis"]
[WhiteFideId "13602250"]
[BlackFideId "13515110"]
[WhiteElo "2954"]
[BlackElo "2815"]
[Result "1/2-1/2"]
[Round "11"]
[TimeControl "180+1"]
[Date "2021.09.28"]
[WhiteClock "0:00:21"]
[BlackClock "0:00:05"]

1. e4 {[%clk 0:03:00]}  e5 {[%clk 0:02:59]} 2. Nf3 {[%clk 0:03:00]}  Nc6 {[%clk 0:03:00]} 3. Bb5 {[%clk 0:03:00]}  Nf6 {[%clk 0:03:00]} 4. O-O {[%clk 0:03:00]}  Nxe4 {[%clk 0:03:00]} 5. d4 {[%clk 0:03:00]}  Nd6 {[%clk 0:03:00]} 6. Bxc6 {[%clk 0:03:00]}  dxc6 {[%clk 0:03:01]} 7. dxe5 {[%clk 0:03:01]}  Nf5 {[%clk 0:03:02]} 8. Qxd8+ {[%clk 0:03:01]}  Kxd8 {[%clk 0:03:02]} 9. Rd1+ {[%clk 0:03:02]}  Ke8 {[%clk 0:03:02]} 10. Nc3 {[%clk 0:03:02]}  Be7 {[%clk 0:03:01]} 11. h3 {[%clk 0:03:00]}  h5 {[%clk 0:03:01]} 12. Bg5 {[%clk 0:02:58]}  Be6 {[%clk 0:02:57]} 13. Rd2 {[%clk 0:02:56]}  Rd8 {[%clk 0:02:53]} 14. Rad1 {[%clk 0:02:55]}  Rxd2 {[%clk 0:02:52]} 15. Rxd2 {[%clk 0:02:56]}  h4 {[%clk 0:02:49]} 16. a3 {[%clk 0:02:50]}  Rh5 {[%clk 0:02:44]} 17. Bxe7 {[%clk 0:02:50]}  Nxe7 {[%clk 0:02:39]} 18. Rd4 {[%clk 0:02:40]}  Ng6 {[%clk 0:02:37]} 19. Re4 {[%clk 0:02:39]}  Ke7 {[%clk 0:02:23]} 20. Kf1 {[%clk 0:02:36]}  Rh8 {[%clk 0:02:18]} 21. Rd4 {[%clk 0:02:32]}  Rh5 {[%clk 0:02:09]} 22. Re4 {[%clk 0:02:12]}  Rh8 {[%clk 0:02:07]} 23. Ra4 {[%clk 0:01:54]}  a6 {[%clk 0:02:03]} 24. Rd4 {[%clk 0:01:54]}  b6 {[%clk 0:01:47]} 25. Ke2 {[%clk 0:01:50]}  Bf5 {[%clk 0:01:44]} 26. Rc4 {[%clk 0:01:46]}  c5 {[%clk 0:01:32]} 27. Nd5+ {[%clk 0:01:46]}  Kd7 {[%clk 0:01:31]} 28. Nf4 {[%clk 0:01:42]}  Ne7 {[%clk 0:01:10]} 29. Kd2 {[%clk 0:01:31]}  a5 {[%clk 0:00:43]} 30. a4 {[%clk 0:01:27]}  Nc6 {[%clk 0:00:29]} 31. Ne2 {[%clk 0:01:26]}  Be6 {[%clk 0:00:29]} 32. Rf4 {[%clk 0:01:19]}  Rh5 {[%clk 0:00:22]} 33. Rxh4 {[%clk 0:01:07]}  Rxh4 {[%clk 0:00:21]} 34. Nxh4 {[%clk 0:01:08]}  Nxe5 {[%clk 0:00:22]} 35. f4 {[%clk 0:01:06]}  Nc4+ {[%clk 0:00:22]} 36. Kc1 {[%clk 0:01:06]}  Ne3 {[%clk 0:00:22]} 37. b3 {[%clk 0:01:00]}  c4 {[%clk 0:00:21]} 38. Kd2 {[%clk 0:00:43]}  Nf1+ {[%clk 0:00:21]} 39. Ke1 {[%clk 0:00:42]}  Ne3 {[%clk 0:00:21]} 40. Kd2 {[%clk 0:00:42]}  Nf1+ {[%clk 0:00:19]} 41. Kc3 {[%clk 0:00:43]}  cxb3 {[%clk 0:00:19]} 42. cxb3 {[%clk 0:00:44]}  Ne3 {[%clk 0:00:19]} 43. Nd4 {[%clk 0:00:43]}  Bd5 {[%clk 0:00:19]} 44. g4 {[%clk 0:00:42]}  f6 {[%clk 0:00:18]} 45. Ndf5 {[%clk 0:00:41]}  Nxf5 {[%clk 0:00:15]} 46. Nxf5 {[%clk 0:00:42]}  g6 {[%clk 0:00:16]} 47. Ne3 {[%clk 0:00:42]}  Bf7 {[%clk 0:00:15]} 48. h4 {[%clk 0:00:41]}  Kd6 {[%clk 0:00:15]} 49. g5 {[%clk 0:00:37]}  fxg5 {[%clk 0:00:15]} 50. hxg5 {[%clk 0:00:37]}  Be6 {[%clk 0:00:14]} 51. Nc2 {[%clk 0:00:35]}  Kd5 {[%clk 0:00:10]} 52. Nd4 {[%clk 0:00:35]}  Bd7 {[%clk 0:00:10]} 53. Kd3 {[%clk 0:00:33]}  Bg4 {[%clk 0:00:10]} 54. Ke3 {[%clk 0:00:31]}  Bd7 {[%clk 0:00:07]} 55. Ne2 {[%clk 0:00:24]}  Be6 {[%clk 0:00:05]} 56. Nd4 {[%clk 0:00:23]}  Bd7 {[%clk 0:00:05]} 57. Kd3 {[%clk 0:00:22]}  Bg4 {[%clk 0:00:05]} 58. Ke3 {[%clk 0:00:21]}  Bd7 {[%clk 0:00:05]} 1/2-1/2


[Site "https://www.chess.com"]

[Event "Titled Tuesday Blitz September 28 2021"]
[White "Rottenwohrer Suarez, Juan"]
[Black "pawel83"]
[WhiteFideId "32068182"]
[WhiteElo "2158"]
[BlackElo "2455"]
[Result "0-1"]
[Round "11"]
[TimeControl "180+1"]
[Date "2021.09.28"]
[WhiteClock "0:00:03"]
[BlackClock "0:00:12"]

1. Nf3 {[%clk 0:03:00]}  Nf6 {[%clk 0:02:59]} 2. c4 {[%clk 0:03:00]}  g6 {[%clk 0:02:59]} 3. b3 {[%clk 0:02:59]}  Bg7 {[%clk 0:03:00]} 4. Bb2 {[%clk 0:03:00]}  O-O {[%clk 0:03:00]} 5. g3 {[%clk 0:03:00]}  b6 {[%clk 0:03:00]} 6. Bg2 {[%clk 0:03:00]}  Bb7 {[%clk 0:03:01]} 7. O-O {[%clk 0:03:01]}  c5 {[%clk 0:02:59]} 8. d4 {[%clk 0:02:45]}  cxd4 {[%clk 0:02:58]} 9. Qxd4 {[%clk 0:02:46]}  d6 {[%clk 0:02:51]} 10. Nc3 {[%clk 0:02:25]}  Nc6 {[%clk 0:02:37]} 11. Qd2 {[%clk 0:02:22]}  Ne5 {[%clk 0:02:34]} 12. Rad1 {[%clk 0:02:10]}  Nxf3+ {[%clk 0:02:33]} 13. exf3 {[%clk 0:02:11]}  Nd7 {[%clk 0:02:33]} 14. Rfe1 {[%clk 0:02:10]}  Re8 {[%clk 0:02:31]} 15. Nd5 {[%clk 0:02:08]}  Bxb2 {[%clk 0:02:24]} 16. Qxb2 {[%clk 0:02:09]}  Bxd5 {[%clk 0:02:23]} 17. Rxd5 {[%clk 0:02:03]}  Rc8 {[%clk 0:02:23]} 18. f4 {[%clk 0:01:57]}  Rc5 {[%clk 0:02:22]} 19. Qd2 {[%clk 0:01:49]}  Rxd5 {[%clk 0:02:21]} 20. Qxd5 {[%clk 0:01:48]}  Qc7 {[%clk 0:02:17]} 21. h4 {[%clk 0:01:37]}  Nf6 {[%clk 0:02:16]} 22. Qd3 {[%clk 0:01:35]}  h5 {[%clk 0:02:15]} 23. f5 {[%clk 0:01:30]}  Kg7 {[%clk 0:02:04]} 24. fxg6 {[%clk 0:01:28]}  fxg6 {[%clk 0:02:04]} 25. Re6 {[%clk 0:01:25]}  Qc5 {[%clk 0:01:51]} 26. Bd5 {[%clk 0:01:23]}  b5 {[%clk 0:01:41]} 27. Qe2 {[%clk 0:01:06]}  Qc7 {[%clk 0:01:20]} 28. Be4 {[%clk 0:00:42]}  bxc4 {[%clk 0:01:16]} 29. bxc4 {[%clk 0:00:43]}  Qb6 {[%clk 0:01:09]} 30. Bd3 {[%clk 0:00:40]}  Kf7 {[%clk 0:00:58]} 31. Kg2 {[%clk 0:00:16]}  Qd4 {[%clk 0:00:57]} 32. f3 {[%clk 0:00:15]}  a5 {[%clk 0:00:43]} 33. g4 {[%clk 0:00:08]}  hxg4 {[%clk 0:00:41]} 34. fxg4 {[%clk 0:00:09]}  Qxg4+ {[%clk 0:00:27]} 35. Qxg4 {[%clk 0:00:09]}  Nxg4 {[%clk 0:00:27]} 36. Bxg6+ {[%clk 0:00:07]}  Kxe6 {[%clk 0:00:27]} 37. Bxe8 {[%clk 0:00:07]}  Ne3+ {[%clk 0:00:23]} 38. Kf3 {[%clk 0:00:07]}  Nxc4 {[%clk 0:00:23]} 39. h5 {[%clk 0:00:06]}  Kf6 {[%clk 0:00:22]} 40. Ke4 {[%clk 0:00:05]}  Nb6 {[%clk 0:00:20]} 41. Kd4 {[%clk 0:00:05]}  e5+ {[%clk 0:00:19]} 42. Ke4 {[%clk 0:00:05]}  d5+ {[%clk 0:00:19]} 43. Kd3 {[%clk 0:00:05]}  Nc4 {[%clk 0:00:18]} 44. Bc6 {[%clk 0:00:04]}  Nb6 {[%clk 0:00:18]} 45. Be8 {[%clk 0:00:04]}  Kg5 {[%clk 0:00:18]} 46. Bf7 {[%clk 0:00:04]}  e4+ {[%clk 0:00:17]} 47. Kd4 {[%clk 0:00:04]}  a4 {[%clk 0:00:17]} 48. Ke3 {[%clk 0:00:04]}  Nc4+ {[%clk 0:00:15]} 49. Kd4 {[%clk 0:00:04]}  e3 {[%clk 0:00:15]} 50. Bxd5 {[%clk 0:00:03]}  e2 {[%clk 0:00:15]} 51. Bxc4 {[%clk 0:00:03]}  e1=Q {[%clk 0:00:14]} 52. Kc5 {[%clk 0:00:03]}  Kxh5 {[%clk 0:00:12]} 53. Kb5 {[%clk 0:00:04]}  a3 {[%clk 0:00:11]} 54. Ka4 {[%clk 0:00:03]}  Qc3 {[%clk 0:00:11]} 55. Bb3 {[%clk 0:00:04]}  Qc5 {[%clk 0:00:11]} 56. Bd1+ {[%clk 0:00:02]}  Kg5 {[%clk 0:00:12]} 57. Bb3 {[%clk 0:00:03]}  Kf4 {[%clk 0:00:12]} 0-1


[Site "https://www.chess.com"]

[Event "Titled Tuesday Blitz September 28 2021"]
[White "Rustemov, Alexander"]
[Black "Sellitti, Federico"]
[WhiteFideId "4119002"]
[BlackFideId "821829"]
[WhiteElo "2748"]
[BlackElo "2584"]
[Result "1-0"]
[Round "11"]
[TimeControl "180+1"]
[Date "2021.09.28"]
[WhiteClock "0:00:04"]
[BlackClock "0:00:05"]

1. d4 {[%clk 0:02:59]}  d5 {[%clk 0:02:58]} 2. c4 {[%clk 0:02:59]}  e5 {[%clk 0:02:58]} 3. dxe5 {[%clk 0:02:56]}  d4 {[%clk 0:02:59]} 4. Nf3 {[%clk 0:02:55]}  Nc6 {[%clk 0:02:59]} 5. a3 {[%clk 0:02:56]}  Bg4 {[%clk 0:02:57]} 6. Nbd2 {[%clk 0:02:49]}  Qd7 {[%clk 0:02:55]} 7. b4 {[%clk 0:02:44]}  f6 {[%clk 0:02:55]} 8. exf6 {[%clk 0:02:42]}  gxf6 {[%clk 0:02:55]} 9. g3 {[%clk 0:02:41]}  O-O-O {[%clk 0:02:51]} 10. Bg2 {[%clk 0:02:41]}  Bh3 {[%clk 0:02:48]} 11. O-O {[%clk 0:02:39]}  h5 {[%clk 0:02:48]} 12. Nh4 {[%clk 0:02:26]}  Nge7 {[%clk 0:02:42]} 13. Ndf3 {[%clk 0:02:25]}  Bxg2 {[%clk 0:02:26]} 14. Kxg2 {[%clk 0:02:25]}  Nf5 {[%clk 0:02:26]} 15. Qd3 {[%clk 0:02:18]}  Nxh4+ {[%clk 0:02:23]} 16. Nxh4 {[%clk 0:02:18]}  Kb8 {[%clk 0:02:16]} 17. Bf4 {[%clk 0:02:14]}  Rg8 {[%clk 0:02:08]} 18. Qf5 {[%clk 0:02:05]}  Qf7 {[%clk 0:02:02]} 19. Rad1 {[%clk 0:02:04]}  Qxc4 {[%clk 0:01:32]} 20. Qxh5 {[%clk 0:02:00]}  Bd6 {[%clk 0:01:27]} 21. Bxd6 {[%clk 0:01:54]}  Rxd6 {[%clk 0:01:28]} 22. Nf5 {[%clk 0:01:50]}  Rdd8 {[%clk 0:01:00]} 23. Qf3 {[%clk 0:01:46]}  Rge8 {[%clk 0:00:56]} 24. Rd2 {[%clk 0:01:31]}  Ne5 {[%clk 0:00:54]} 25. Qh5 {[%clk 0:01:29]}  Rh8 {[%clk 0:00:45]} 26. Nh6 {[%clk 0:01:07]}  Qc6+ {[%clk 0:00:44]} 27. f3 {[%clk 0:01:03]}  f5 {[%clk 0:00:33]} 28. Rfd1 {[%clk 0:00:51]}  Qxh6 {[%clk 0:00:32]} 29. Qxh6 {[%clk 0:00:50]}  Rxh6 {[%clk 0:00:33]} 30. Rxd4 {[%clk 0:00:51]}  Rhd6 {[%clk 0:00:32]} 31. Rxd6 {[%clk 0:00:44]}  Rxd6 {[%clk 0:00:33]} 32. Rxd6 {[%clk 0:00:40]}  cxd6 {[%clk 0:00:34]} 33. h4 {[%clk 0:00:41]}  Kc7 {[%clk 0:00:29]} 34. h5 {[%clk 0:00:41]}  Kd7 {[%clk 0:00:28]} 35. Kh3 {[%clk 0:00:41]}  Ke6 {[%clk 0:00:26]} 36. Kh4 {[%clk 0:00:37]}  Kf6 {[%clk 0:00:26]} 37. h6 {[%clk 0:00:38]}  Kg6 {[%clk 0:00:22]} 38. h7 {[%clk 0:00:38]}  Kxh7 {[%clk 0:00:23]} 39. Kg5 {[%clk 0:00:38]}  Nc4 {[%clk 0:00:20]} 40. Kxf5 {[%clk 0:00:36]}  Nxa3 {[%clk 0:00:20]} 41. Ke6 {[%clk 0:00:33]}  Nc2 {[%clk 0:00:20]} 42. Kf7 {[%clk 0:00:14]}  Nxb4 {[%clk 0:00:18]} 43. g4 {[%clk 0:00:14]}  Nd5 {[%clk 0:00:19]} 44. g5 {[%clk 0:00:14]}  Nf4 {[%clk 0:00:19]} 45. e3 {[%clk 0:00:14]}  Ng6 {[%clk 0:00:20]} 46. f4 {[%clk 0:00:14]}  a5 {[%clk 0:00:13]} 47. f5 {[%clk 0:00:14]}  Ne5+ {[%clk 0:00:13]} 48. Ke6 {[%clk 0:00:14]}  a4 {[%clk 0:00:10]} 49. Kxd6 {[%clk 0:00:14]}  Nc6 {[%clk 0:00:09]} 50. Ke6 {[%clk 0:00:07]}  Kg8 {[%clk 0:00:07]} 51. f6 {[%clk 0:00:04]}  Nd8+ {[%clk 0:00:07]} 52. Ke7 {[%clk 0:00:04]}  Nf7 {[%clk 0:00:07]} 53. g6 {[%clk 0:00:04]}  Nd6 {[%clk 0:00:02]} 54. f7+ {[%clk 0:00:04]}  Kg7 {[%clk 0:00:02]} 55. f8=Q+ {[%clk 0:00:04]}  Kxg6 {[%clk 0:00:03]} 56. Kxd6 {[%clk 0:00:03]}  Kh5 {[%clk 0:00:04]} 57. Qg7 {[%clk 0:00:03]}  a3 {[%clk 0:00:05]} 58. Ke5 {[%clk 0:00:03]}  a2 {[%clk 0:00:05]} 59. Kf5 {[%clk 0:00:04]} 1-0


[Site "https://www.chess.com"]

[Event "Titled Tuesday Blitz September 28 2021"]
[White "Sadhwani, Raunak"]
[Black "Seo, Jung Min"]
[WhiteFideId "35093487"]
[BlackFideId "1734687"]
[WhiteElo "2517"]
[BlackElo "2486"]
[Result "0-1"]
[Round "11"]
[TimeControl "180+1"]
[Date "2021.09.28"]
[WhiteClock "0:00:10"]
[BlackClock "0:00:32"]

1. d4 {[%clk 0:03:00]}  Nf6 {[%clk 0:02:59]} 2. Nf3 {[%clk 0:03:00]}  e6 {[%clk 0:03:00]} 3. Bf4 {[%clk 0:03:00]}  d5 {[%clk 0:02:59]} 4. e3 {[%clk 0:03:01]}  Bd6 {[%clk 0:02:59]} 5. Nbd2 {[%clk 0:03:01]}  c5 {[%clk 0:02:57]} 6. c3 {[%clk 0:03:01]}  b6 {[%clk 0:02:50]} 7. Ne5 {[%clk 0:02:58]}  Qc7 {[%clk 0:02:48]} 8. h4 {[%clk 0:02:57]}  Nbd7 {[%clk 0:02:46]} 9. Nxd7 {[%clk 0:02:57]}  Bxd7 {[%clk 0:02:45]} 10. Bxd6 {[%clk 0:02:55]}  Qxd6 {[%clk 0:02:45]} 11. h5 {[%clk 0:02:56]}  e5 {[%clk 0:02:42]} 12. h6 {[%clk 0:02:55]}  g6 {[%clk 0:02:42]} 13. Nf3 {[%clk 0:02:42]}  exd4 {[%clk 0:02:36]} 14. cxd4 {[%clk 0:02:43]}  O-O {[%clk 0:02:34]} 15. Be2 {[%clk 0:02:43]}  Bg4 {[%clk 0:02:32]} 16. O-O {[%clk 0:02:40]}  Rfe8 {[%clk 0:02:23]} 17. Rc1 {[%clk 0:02:36]}  c4 {[%clk 0:02:16]} 18. Ne5 {[%clk 0:02:33]}  Bxe2 {[%clk 0:02:16]} 19. Qxe2 {[%clk 0:02:34]}  Nd7 {[%clk 0:02:14]} 20. Nxd7 {[%clk 0:02:31]}  Qxd7 {[%clk 0:02:14]} 21. Qf3 {[%clk 0:02:32]}  f5 {[%clk 0:02:10]} 22. g3 {[%clk 0:02:29]}  b5 {[%clk 0:02:09]} 23. Kg2 {[%clk 0:02:29]}  b4 {[%clk 0:02:05]} 24. Rh1 {[%clk 0:02:27]}  Re4 {[%clk 0:02:04]} 25. Rh4 {[%clk 0:02:21]}  Rxh4 {[%clk 0:02:00]} 26. gxh4 {[%clk 0:02:22]}  Re8 {[%clk 0:02:00]} 27. h5 {[%clk 0:02:20]}  Re4 {[%clk 0:01:59]} 28. hxg6 {[%clk 0:02:18]}  hxg6 {[%clk 0:01:59]} 29. Rh1 {[%clk 0:02:19]}  Kh7 {[%clk 0:01:57]} 30. Kf1 {[%clk 0:02:04]}  Qf7 {[%clk 0:01:55]} 31. Ke2 {[%clk 0:02:00]}  a5 {[%clk 0:01:41]} 32. Ra1 {[%clk 0:01:17]}  a4 {[%clk 0:01:36]} 33. a3 {[%clk 0:01:18]}  b3 {[%clk 0:01:32]} 34. Rg1 {[%clk 0:01:14]}  Qe6 {[%clk 0:01:12]} 35. Kd2 {[%clk 0:01:12]}  Qf6 {[%clk 0:00:49]} 36. Qh3 {[%clk 0:00:52]}  f4 {[%clk 0:00:44]} 37. Rf1 {[%clk 0:00:42]}  Qf5 {[%clk 0:00:36]} 38. Qxf5 {[%clk 0:00:17]}  gxf5 {[%clk 0:00:36]} 39. Kc3 {[%clk 0:00:14]}  fxe3 {[%clk 0:00:34]} 40. fxe3 {[%clk 0:00:15]}  Rxe3+ {[%clk 0:00:35]} 41. Kb4 {[%clk 0:00:15]}  Re2 {[%clk 0:00:35]} 42. Rxf5 {[%clk 0:00:10]}  Rxb2 {[%clk 0:00:34]} 43. Rxd5 {[%clk 0:00:10]}  Rc2 {[%clk 0:00:32]} 44. Kxa4 {[%clk 0:00:09]}  b2 {[%clk 0:00:32]} 45. Rb5 {[%clk 0:00:10]}  c3 {[%clk 0:00:32]} 0-1


[Site "https://www.chess.com"]

[Event "Titled Tuesday Blitz September 28 2021"]
[White "Sadovsky, Artem"]
[Black "Aradhya, Garg"]
[WhiteFideId "4155840"]
[BlackFideId "25006746"]
[WhiteElo "2414"]
[BlackElo "2146"]
[Result "1-0"]
[Round "11"]
[TimeControl "180+1"]
[Date "2021.09.28"]
[WhiteClock "0:00:21"]
[BlackClock "0:00:27"]

1. Nf3 {[%clk 0:03:00]}  d5 {[%clk 0:02:59]} 2. g3 {[%clk 0:02:59]}  c5 {[%clk 0:02:59]} 3. Bg2 {[%clk 0:03:00]}  Nc6 {[%clk 0:02:58]} 4. O-O {[%clk 0:02:58]}  e5 {[%clk 0:02:58]} 5. d3 {[%clk 0:02:59]}  Nf6 {[%clk 0:02:58]} 6. e4 {[%clk 0:02:58]}  Be7 {[%clk 0:02:56]} 7. exd5 {[%clk 0:02:58]}  Nxd5 {[%clk 0:02:56]} 8. Re1 {[%clk 0:02:59]}  f6 {[%clk 0:02:56]} 9. c3 {[%clk 0:02:59]}  O-O {[%clk 0:02:56]} 10. d4 {[%clk 0:03:00]}  Bg4 {[%clk 0:02:47]} 11. h3 {[%clk 0:02:17]}  Bh5 {[%clk 0:02:34]} 12. g4 {[%clk 0:02:03]}  Bf7 {[%clk 0:02:23]} 13. dxe5 {[%clk 0:02:04]}  fxe5 {[%clk 0:02:23]} 14. Nxe5 {[%clk 0:02:04]}  Nxe5 {[%clk 0:02:23]} 15. Rxe5 {[%clk 0:02:04]}  Nb6 {[%clk 0:02:11]} 16. Qxd8 {[%clk 0:01:45]}  Raxd8 {[%clk 0:02:07]} 17. Nd2 {[%clk 0:01:30]}  Bd6 {[%clk 0:02:05]} 18. Re1 {[%clk 0:01:21]}  Bf4 {[%clk 0:01:25]} 19. Ne4 {[%clk 0:01:16]}  Bxc1 {[%clk 0:01:25]} 20. Raxc1 {[%clk 0:01:17]}  Bd5 {[%clk 0:01:20]} 21. Rcd1 {[%clk 0:00:56]}  Rfe8 {[%clk 0:00:36]} 22. Nxc5 {[%clk 0:00:46]}  Rxe1+ {[%clk 0:00:34]} 23. Rxe1 {[%clk 0:00:45]}  Bxg2 {[%clk 0:00:35]} 24. Kxg2 {[%clk 0:00:45]}  Rd2 {[%clk 0:00:35]} 25. Nxb7 {[%clk 0:00:37]}  Rxb2 {[%clk 0:00:34]} 26. Nd6 {[%clk 0:00:24]}  h5 {[%clk 0:00:32]} 27. g5 {[%clk 0:00:22]}  Kh7 {[%clk 0:00:31]} 28. Re6 {[%clk 0:00:21]}  Nd5 {[%clk 0:00:30]} 29. g6+ {[%clk 0:00:20]}  Kh6 {[%clk 0:00:27]} 30. Nf7# {[%clk 0:00:21]} 1-0


[Site "https://www.chess.com"]

[Event "Titled Tuesday Blitz September 28 2021"]
[White "Sethuraman, S.P."]
[Black "Sjugirov, Sanan"]
[WhiteFideId "5021596"]
[BlackFideId "4189302"]
[WhiteElo "2797"]
[BlackElo "2982"]
[Result "0-1"]
[Round "11"]
[TimeControl "180+1"]
[Date "2021.09.28"]
[WhiteClock "0:00:03"]
[BlackClock "0:00:23"]

1. d4 {[%clk 0:03:00]}  Nf6 {[%clk 0:02:58]} 2. c4 {[%clk 0:03:01]}  e6 {[%clk 0:02:58]} 3. Nf3 {[%clk 0:03:01]}  d5 {[%clk 0:02:56]} 4. g3 {[%clk 0:03:01]}  h6 {[%clk 0:02:53]} 5. Bg2 {[%clk 0:02:59]}  Bd6 {[%clk 0:02:53]} 6. O-O {[%clk 0:02:58]}  O-O {[%clk 0:02:53]} 7. b3 {[%clk 0:02:58]}  b6 {[%clk 0:02:50]} 8. Bb2 {[%clk 0:02:58]}  Bb7 {[%clk 0:02:49]} 9. Nbd2 {[%clk 0:02:58]}  Nbd7 {[%clk 0:02:47]} 10. Rc1 {[%clk 0:02:55]}  c5 {[%clk 0:02:45]} 11. cxd5 {[%clk 0:02:51]}  exd5 {[%clk 0:02:44]} 12. dxc5 {[%clk 0:02:52]}  bxc5 {[%clk 0:02:42]} 13. e3 {[%clk 0:02:49]}  Re8 {[%clk 0:02:40]} 14. Re1 {[%clk 0:02:48]}  Qb6 {[%clk 0:02:39]} 15. Qc2 {[%clk 0:02:44]}  Rad8 {[%clk 0:02:28]} 16. Qb1 {[%clk 0:02:36]}  a5 {[%clk 0:02:24]} 17. Bc3 {[%clk 0:02:33]}  Bc6 {[%clk 0:02:11]} 18. Red1 {[%clk 0:02:33]}  Bf8 {[%clk 0:02:09]} 19. Qc2 {[%clk 0:02:20]}  Ra8 {[%clk 0:02:08]} 20. Rb1 {[%clk 0:02:19]}  Qa6 {[%clk 0:01:54]} 21. Bf1 {[%clk 0:02:18]}  Qb7 {[%clk 0:01:52]} 22. Bg2 {[%clk 0:02:15]}  Qa6 {[%clk 0:01:40]} 23. Bf1 {[%clk 0:02:10]}  Qa7 {[%clk 0:01:40]} 24. Ba1 {[%clk 0:01:55]}  Qb7 {[%clk 0:01:37]} 25. Bg2 {[%clk 0:01:54]}  a4 {[%clk 0:01:36]} 26. Rdc1 {[%clk 0:01:47]}  axb3 {[%clk 0:01:35]} 27. axb3 {[%clk 0:01:48]}  Qb6 {[%clk 0:01:22]} 28. b4 {[%clk 0:01:45]}  c4 {[%clk 0:01:18]} 29. Nd4 {[%clk 0:01:39]}  Ba4 {[%clk 0:01:06]} 30. Qc3 {[%clk 0:01:17]}  Ne5 {[%clk 0:01:06]} 31. Bf1 {[%clk 0:01:02]}  Bd7 {[%clk 0:01:01]} 32. N4f3 {[%clk 0:00:46]}  Nxf3+ {[%clk 0:00:54]} 33. Nxf3 {[%clk 0:00:47]}  Bf5 {[%clk 0:00:52]} 34. Rb2 {[%clk 0:00:38]}  Bg4 {[%clk 0:00:51]} 35. Bg2 {[%clk 0:00:23]}  Reb8 {[%clk 0:00:44]} 36. b5 {[%clk 0:00:22]}  Ra3 {[%clk 0:00:41]} 37. Qe5 {[%clk 0:00:21]}  Re8 {[%clk 0:00:37]} 38. Qd4 {[%clk 0:00:21]}  Bc5 {[%clk 0:00:37]} 39. Qd1 {[%clk 0:00:15]}  Ne4 {[%clk 0:00:36]} 40. Rbb1 {[%clk 0:00:15]}  Nxf2 {[%clk 0:00:35]} 41. Kxf2 {[%clk 0:00:15]}  Rexe3 {[%clk 0:00:33]} 42. Bd4 {[%clk 0:00:10]}  Rxf3+ {[%clk 0:00:31]} 43. Bxf3 {[%clk 0:00:10]}  Bxd4+ {[%clk 0:00:31]} 44. Kg2 {[%clk 0:00:04]}  Bxf3+ {[%clk 0:00:30]} 45. Qxf3 {[%clk 0:00:05]}  Rxf3 {[%clk 0:00:30]} 46. Kxf3 {[%clk 0:00:06]}  Bc5 {[%clk 0:00:28]} 47. Kg2 {[%clk 0:00:05]}  h5 {[%clk 0:00:25]} 48. Rc2 {[%clk 0:00:04]}  Qg6 {[%clk 0:00:25]} 49. Rcb2 {[%clk 0:00:04]}  Qe4+ {[%clk 0:00:24]} 50. Kh3 {[%clk 0:00:03]}  g5 {[%clk 0:00:23]} 51. b6 {[%clk 0:00:03]}  g4+ {[%clk 0:00:23]} 0-1


[Site "https://www.chess.com"]

[Event "Titled Tuesday Blitz September 28 2021"]
[White "Shtembuliak, Evgeny"]
[Black "Pichot, Alan"]
[WhiteFideId "14113325"]
[BlackFideId "110973"]
[WhiteElo "2504"]
[BlackElo "2600"]
[Result "1-0"]
[Round "11"]
[TimeControl "180+1"]
[Date "2021.09.28"]
[WhiteClock "0:01:38"]
[BlackClock "0:01:47"]

1. e4 {[%clk 0:03:00]}  c5 {[%clk 0:02:59]} 2. Nc3 {[%clk 0:02:59]}  e6 {[%clk 0:02:58]} 3. Nge2 {[%clk 0:02:59]}  Nc6 {[%clk 0:02:58]} 4. g3 {[%clk 0:02:59]}  Nf6 {[%clk 0:02:58]} 5. Bg2 {[%clk 0:02:59]}  Be7 {[%clk 0:02:58]} 6. O-O {[%clk 0:02:58]}  O-O {[%clk 0:02:59]} 7. d3 {[%clk 0:02:45]}  d6 {[%clk 0:02:57]} 8. f4 {[%clk 0:02:45]}  a6 {[%clk 0:02:57]} 9. h3 {[%clk 0:02:44]}  Qc7 {[%clk 0:02:58]} 10. g4 {[%clk 0:02:45]}  b5 {[%clk 0:02:58]} 11. Ng3 {[%clk 0:02:43]}  Re8 {[%clk 0:02:57]} 12. g5 {[%clk 0:02:44]}  Nd7 {[%clk 0:02:57]} 13. h4 {[%clk 0:02:43]}  b4 {[%clk 0:02:58]} 14. Nce2 {[%clk 0:02:43]}  Bf8 {[%clk 0:02:58]} 15. f5 {[%clk 0:02:41]}  Nde5 {[%clk 0:02:58]} 16. Nf4 {[%clk 0:02:41]}  a5 {[%clk 0:02:47]} 17. h5 {[%clk 0:02:41]}  a4 {[%clk 0:02:39]} 18. g6 {[%clk 0:02:03]}  hxg6 {[%clk 0:02:37]} 19. hxg6 {[%clk 0:02:00]}  fxg6 {[%clk 0:02:11]} 20. fxg6 {[%clk 0:01:55]}  Be7 {[%clk 0:01:46]} 21. Qh5 {[%clk 0:01:51]}  Bf6 {[%clk 0:01:47]} 22. Qh7+ {[%clk 0:01:42]}  Kf8 {[%clk 0:01:47]} 23. Nfh5 {[%clk 0:01:38]} 1-0


[Site "https://www.chess.com"]